bitfinex-derivatives/quotes_BNBF0:USTF0_20250630
["timestamp","ask_amount","ask_price","bid_price","bid_amount"]
[1751275279381,1.3291859,654.18,653.78,1.816]
[1751275279581,1.3291859,654.17,653.78,1.816]
[1751275279781,1.3291859,654.16,653.78,1.816]
[1751275279981,1.3291859,654.15,653.78,1.816]
[1751275280179,1.3291859,654.14,653.78,1.816]
[1751275280382,1.3291859,654.13,653.78,1.816]
[1751275280583,1.3291859,654.12,653.78,1.816]
[1751275280781,1.3291859,654.11,653.78,1.816]
[1751275280981,1.3291859,654.1,653.78,1.816]
[1751275281184,1.3291859,654.09,653.78,1.816]
[1751275281482,1.3291859,654.08,653.78,1.816]
[1751275281678,1.3291859,654.07,653.78,1.816]
[1751275281883,1.3291859,654.06,653.78,1.816]
[1751275282084,1.3291859,654.05,653.78,1.816]
[1751275282285,1.3291859,654.04,653.78,1.816]
[1751275282584,1.3291859,654.03,653.78,1.816]
[1751275282881,1.3291859,654.02,653.78,1.816]
[1751275283083,1.3291859,654.01,653.78,1.816]
[1751275283286,1.3291859,654.0,653.78,1.816]
[1751275283580,1.3291859,653.99,653.78,1.816]
[1751275283784,1.3291859,653.98,653.78,1.816]
[1751275283983,1.3291859,653.97,653.78,1.816]
[1751275284179,1.3291859,653.96,653.78,1.816]
[1751275284384,1.3291859,653.95,653.78,1.816]
[1751275284585,1.3291859,653.94,653.78,1.816]
[1751275284785,1.5288625,654.32,653.78,1.816]
[1751275284985,1.3298489,654.31,653.78,1.816]
[1751275285186,1.3298489,654.3,653.78,1.816]
[1751275285387,1.3298489,654.29,653.78,1.816]
[1751275285588,1.3298489,654.28,653.78,1.816]
[1751275285788,1.3298489,654.27,653.78,1.816]
[1751275286085,1.3298489,654.26,653.78,1.816]
[1751275286283,1.3298489,654.25,653.78,1.816]
[1751275286483,1.3298489,654.24,653.78,1.816]
[1751275286686,1.3298489,654.23,653.78,1.816]
[1751275286990,1.3298489,654.22,653.78,1.816]
[1751275287184,1.3298489,654.21,653.79,1.377]
[1751275287385,1.3298489,654.2,653.79,1.377]
[1751275287584,1.3298489,654.19,653.79,1.377]
[1751275287787,1.3298489,654.18,653.79,1.377]
[1751275287989,1.3298489,654.17,653.79,1.377]
[1751275288191,1.3298489,654.16,653.79,1.377]
[1751275288394,1.3298489,654.15,653.79,1.377]
[1751275288590,1.3298489,654.14,653.79,1.377]
[1751275288794,1.3298489,654.13,653.79,1.377]
[1751275288994,1.3298489,654.12,653.79,1.377]
[1751275289195,1.3298489,654.11,653.79,1.377]
[1751275289494,1.3298489,654.1,653.79,1.377]
[1751275289697,1.3298489,654.09,653.79,1.377]
[1751275289893,1.3298489,654.08,653.79,1.377]
[1751275290095,1.3298489,654.07,653.79,1.377]
[1751275290394,1.3298489,654.06,653.8,1.488]
[1751275290596,1.3298489,654.05,653.8,1.488]
[1751275290895,1.3298489,654.04,653.8,1.488]
[1751275291095,1.3298489,654.03,653.8,1.488]
[1751275291291,1.3298489,654.02,653.8,1.488]
[1751275291495,1.3298489,654.01,653.8,1.488]
[1751275291695,1.3298489,654.0,653.8,1.488]
[1751275291892,1.3298489,653.99,653.8,1.488]
[1751275292092,0.2660998,654.44,653.8,1.488]
[1751275292298,1.3297758,654.43,653.8,1.488]
[1751275292493,1.3297758,654.42,653.8,1.488]
[1751275292697,1.3297758,654.41,653.8,1.488]
[1751275292996,1.3297758,654.4,653.8,1.488]
[1751275293193,1.3297758,654.39,653.8,1.488]
[1751275293398,1.3297758,654.38,653.8,1.488]
[1751275293596,1.3297758,654.37,653.8,1.488]
[1751275293899,1.3297758,654.36,653.8,1.488]
[1751275294096,1.3297758,654.35,653.8,1.488]
[1751275294297,1.3297758,654.34,653.8,1.488]
[1751275294493,1.3297758,654.33,653.8,1.488]
[1751275294699,1.3297758,654.32,653.8,1.488]
[1751275294898,1.3297758,654.31,653.8,1.488]
[1751275295096,1.3297758,654.3,653.8,1.488]
[1751275295297,1.3297758,654.29,653.8,1.488]
[1751275295502,1.3297758,654.28,653.81,1.733]
[1751275295802,1.3297758,654.27,653.81,1.733]
[1751275296002,1.3297758,654.26,653.81,1.733]
[1751275296297,1.3297758,654.25,653.81,1.733]
[1751275296501,1.3297758,654.24,653.81,1.733]
[1751275296703,1.3297758,654.23,653.81,1.733]
[1751275296900,1.3297758,654.22,653.81,1.733]
[1751275297100,1.3297758,654.21,653.81,1.733]
[1751275297403,1.3297758,654.2,653.81,1.733]
[1751275297603,0.2660998,654.44,653.81,1.733]
[1751275297604,1.3297758,654.19,653.81,1.733]
[1751275297804,1.3297758,654.18,653.81,1.733]
[1751275298000,1.3297758,654.17,653.82,1.657]
[1751275298204,1.3297758,654.16,653.82,1.657]
[1751275298403,1.3297758,654.15,653.82,1.657]
[1751275298601,1.3297758,654.14,653.82,1.657]
[1751275298804,1.3297758,654.13,653.82,1.657]
[1751275299101,1.3297758,654.12,653.82,1.657]
[1751275299403,1.3297758,654.11,653.82,1.657]
[1751275299600,1.3297758,654.1,653.82,1.657]
[1751275299804,1.3297758,654.09,653.82,1.657]
[1751275300001,1.3297758,654.08,653.82,1.657]
[1751275300304,1.3297758,654.07,653.82,1.657]
[1751275300500,1.5280173,654.43,653.82,1.657]
[1751275300501,1.3297758,654.06,653.82,1.657]
[1751275300700,1.3297758,654.05,653.82,1.657]
[1751275300906,1.3297758,654.04,653.82,1.657]
[1751275301106,1.3297758,654.03,653.82,1.657]
[1751275301401,1.3297758,654.02,653.82,1.657]
[1751275301605,0.2660998,654.44,653.82,1.657]
[1751275301606,1.3297758,654.01,653.82,1.657]
[1751275301806,1.3297758,654.0,653.82,1.657]
[1751275302001,1.3297758,653.99,653.82,1.657]
[1751275302201,1.5280173,654.38,653.82,1.657]
[1751275302403,1.3295221,654.37,653.82,1.657]
[1751275302705,1.3295221,654.36,653.83,1.856]
[1751275302905,1.3295221,654.35,653.83,1.856]
[1751275303105,1.3295221,654.34,653.83,1.856]
[1751275303302,1.3295221,654.33,653.83,1.856]
[1751275303506,1.3295221,654.32,653.83,1.856]
[1751275303705,1.3295221,654.31,653.83,1.856]
[1751275303903,1.3295221,654.3,653.83,1.856]
[1751275304107,1.3295221,654.29,653.83,1.856]
[1751275304309,1.3295221,654.28,653.83,1.856]
[1751275304508,1.3295221,654.27,653.83,1.856]
[1751275304706,1.3295221,654.26,653.83,1.856]
[1751275304906,1.3295221,654.25,653.83,1.856]
[1751275305107,1.3295221,654.24,653.83,1.856]
[1751275305306,1.3295221,654.23,653.83,1.856]
[1751275305612,1.3295221,654.22,653.83,1.856]
[1751275305812,1.3295221,654.21,653.83,1.856]
[1751275306107,1.3295221,654.2,653.83,1.856]
[1751275306306,1.3295221,654.19,653.83,1.856]
[1751275306508,1.3295221,654.18,653.83,1.856]
[1751275306708,1.3295221,654.17,653.83,1.856]
[1751275306907,1.3295221,654.16,653.83,1.856]
[1751275307111,1.3295221,654.15,653.83,1.856]
[1751275307308,1.3295221,654.14,653.83,1.856]
[1751275307511,0.2660998,654.44,653.83,1.856]
[1751275307512,1.3295221,654.13,653.83,1.856]
[1751275307710,1.3295221,654.12,653.83,1.856]
[1751275308012,1.3295221,654.11,653.83,1.856]
[1751275308212,1.3295221,654.1,653.83,1.856]
[1751275308412,1.3295221,654.09,653.83,1.856]
[1751275308607,1.3295221,654.08,653.83,1.856]
[1751275308907,1.3295221,654.07,653.83,1.856]
[1751275309213,1.3295221,654.06,653.83,1.856]
[1751275309408,1.3295221,654.05,653.83,1.856]
[1751275309616,1.3295221,654.04,653.83,1.856]
[1751275309807,1.3295221,654.03,653.83,1.856]
[1751275310107,1.3295221,654.02,653.83,1.856]
[1751275310312,1.3295221,654.01,653.83,1.856]
[1751275310513,1.3295221,654.0,653.83,1.856]
[1751275310709,1.3295221,653.99,653.83,1.856]
[1751275310909,1.3295221,653.98,653.83,1.856]
[1751275311114,1.5280173,654.29,653.83,1.856]
[1751275311312,1.3292265,654.28,653.83,1.856]
[1751275311515,1.3292265,654.27,653.83,1.856]
[1751275311712,1.3292265,654.26,653.83,1.856]
[1751275311916,1.3292265,654.25,653.83,1.856]
[1751275312110,1.3292265,654.24,653.83,1.856]
[1751275312313,1.3292265,654.23,653.83,1.856]
[1751275312517,1.3292265,654.22,653.83,1.856]
[1751275312817,1.3292265,654.21,653.83,1.856]
[1751275313116,1.3292265,654.2,653.83,1.856]
[1751275313411,1.5280173,654.34,653.83,1.856]
[1751275313412,1.3292265,654.19,653.83,1.856]
[1751275313612,1.3292265,654.18,653.83,1.856]
[1751275313812,1.3292265,654.17,653.83,1.856]
[1751275314118,1.3292265,654.16,653.83,1.856]
[1751275314317,1.3292265,654.15,653.83,1.856]
[1751275314518,1.3292265,654.14,653.83,1.856]
[1751275314813,1.3292265,654.13,653.83,1.856]
[1751275315016,1.3292265,654.12,653.83,1.856]
[1751275315216,1.5280173,654.35,653.83,1.856]
[1751275315217,1.3292265,654.11,653.84,1.374]
[1751275315417,1.3292265,654.1,653.84,3.044]
[1751275315614,1.3292265,654.09,653.84,3.044]
[1751275315916,1.3292265,654.08,653.84,3.044]
[1751275316117,1.3292265,654.07,653.84,3.044]
[1751275316413,1.3292265,654.06,653.84,3.044]
[1751275316613,1.3292265,654.05,653.84,3.044]
[1751275316813,1.3292265,654.04,653.84,3.044]
[1751275317019,1.3292265,654.03,653.84,3.044]
[1751275317218,1.3289252,654.02,653.84,3.044]
[1751275317419,1.5280173,654.36,653.84,3.044]
[1751275317617,1.3288407,654.35,653.84,3.044]
[1751275317818,1.3288407,654.34,653.84,3.044]
[1751275318018,1.3288407,654.33,653.84,3.044]
[1751275318215,1.3288407,654.32,653.84,3.044]
[1751275318418,1.3288407,654.31,653.84,3.044]
[1751275318620,1.3288407,654.3,653.84,3.044]
[1751275318816,1.3288407,654.29,653.84,3.044]
[1751275319119,1.3288407,654.28,653.84,3.044]
[1751275319317,1.3288407,654.27,653.84,3.044]
[1751275319519,1.3288407,654.26,653.84,3.044]
[1751275319718,1.3288407,654.25,653.84,3.044]
[1751275319920,1.3288407,654.24,653.84,3.044]
[1751275320118,1.3288407,654.23,653.84,3.044]
[1751275320318,1.3288407,654.22,653.84,3.044]
[1751275320528,1.3288407,654.21,653.84,3.044]
[1751275320721,1.3288407,654.2,653.84,3.044]
[1751275320917,1.3288407,654.19,653.84,3.044]
[1751275321118,1.3288407,654.18,653.84,3.044]
[1751275321319,1.3288407,654.17,653.84,3.044]
[1751275321621,1.3288407,654.16,653.84,3.044]
[1751275321823,1.3288407,654.15,653.84,3.044]
[1751275322023,1.3288407,654.14,653.84,3.044]
[1751275322320,1.3288407,654.13,653.84,3.044]
[1751275322524,1.3288407,654.12,653.85,1.889]
[1751275322822,1.3288407,654.11,653.85,1.889]
[1751275323123,1.3288407,654.1,653.85,1.889]
[1751275323323,1.3288407,654.09,653.85,1.889]
[1751275323521,1.3288407,654.08,653.85,1.889]
[1751275323719,1.3288407,654.07,653.85,1.889]
[1751275324018,1.3288407,654.06,653.85,1.889]
[1751275324218,1.3288407,654.05,653.85,1.889]
[1751275324423,1.3288407,654.04,653.85,1.889]
[1751275324622,1.5280173,654.37,653.85,1.889]
[1751275324823,1.3284017,654.36,653.85,1.889]
[1751275325119,1.3284017,654.35,653.85,1.889]
[1751275325323,1.3284017,654.34,653.85,1.889]
[1751275325522,1.3284017,654.33,653.85,1.889]
[1751275325718,1.5280173,654.39,653.85,1.889]
[1751275325719,1.3284017,654.32,653.85,1.889]
[1751275325920,1.3284017,654.31,653.85,1.889]
[1751275326225,1.3284017,654.3,653.85,1.889]
[1751275326418,1.3284017,654.29,653.85,1.889]
[1751275326620,1.3284017,654.28,653.85,1.889]
[1751275326820,1.3284017,654.27,653.85,1.889]
[1751275327117,1.3284017,654.26,653.85,1.889]
[1751275327423,1.3284017,654.25,653.85,1.889]
[1751275327625,1.3284017,654.24,653.86,2.337]
[1751275327923,1.3284017,654.23,653.86,2.337]
[1751275328121,1.3284017,654.22,653.86,2.337]
[1751275328321,1.3284017,654.21,653.86,2.337]
[1751275328620,1.3284017,654.2,653.86,2.337]
[1751275328925,1.3284017,654.19,653.86,2.337]
[1751275329122,1.3284017,654.18,653.86,2.337]
[1751275329328,1.3284017,654.17,653.86,2.337]
[1751275329523,1.3284017,654.16,653.86,2.337]
[1751275329822,1.3284017,654.15,653.86,2.337]
[1751275330025,1.3284017,654.14,653.86,2.337]
[1751275330225,1.3284017,654.13,653.86,2.337]
[1751275330420,1.3284017,654.12,653.86,2.337]
[1751275330620,1.3284017,654.11,653.86,2.337]
[1751275330824,1.3284017,654.1,653.86,2.337]
[1751275331023,1.3284017,654.09,653.86,2.337]
[1751275331222,1.3284017,654.08,653.86,2.337]
[1751275331426,1.5280173,654.43,653.86,2.337]
[1751275331626,1.3276255,654.42,653.86,2.337]
[1751275331928,1.3276255,654.41,653.86,2.337]
[1751275332124,1.3276255,654.4,653.86,2.337]
[1751275332424,1.3276255,654.39,653.86,2.337]
[1751275332626,1.3276255,654.38,653.86,2.337]
[1751275332825,1.3276255,654.37,653.86,2.337]
[1751275333023,1.3276255,654.36,653.86,2.337]
[1751275333226,1.3276255,654.35,653.86,2.337]
[1751275333427,1.3276255,654.34,653.86,2.337]
[1751275333728,1.3276255,654.33,653.86,2.337]
[1751275333921,1.3276255,654.32,653.86,2.337]
[1751275334123,1.3276255,654.31,653.86,2.337]
[1751275334323,1.3276255,654.3,653.86,2.337]
[1751275334522,1.3276255,654.29,653.86,2.337]
[1751275334726,1.3276255,654.28,653.86,2.337]
[1751275334927,1.3276255,654.27,653.86,2.337]
[1751275335128,1.3276255,654.26,653.86,2.337]
[1751275335325,1.3276255,654.25,653.86,2.337]
[1751275335529,1.3276255,654.24,653.86,2.337]
[1751275335828,1.3276255,654.23,653.86,2.337]
[1751275336024,1.3276255,654.22,653.86,2.337]
[1751275336329,0.26606522,654.52,653.86,2.337]
[1751275336330,1.3276255,654.21,653.86,2.337]
[1751275336625,1.3276255,654.2,653.86,2.337]
[1751275336829,1.3276255,654.19,653.86,2.337]
[1751275337030,1.3276255,654.18,653.86,2.337]
[1751275337331,1.3276255,654.17,653.86,2.337]
[1751275337530,1.3276255,654.16,653.86,2.337]
[1751275337726,1.3276255,654.15,653.86,2.337]
[1751275337926,1.3276255,654.14,653.86,2.337]
[1751275338131,1.3276255,654.13,653.86,2.337]
[1751275338334,1.3276255,654.12,653.86,2.337]
[1751275338627,1.3276255,654.11,653.86,2.337]
[1751275338827,1.5280173,654.45,653.86,2.337]
[1751275339028,1.3272954,654.44,653.86,2.337]
[1751275339232,1.3272954,654.43,653.86,2.337]
[1751275339527,1.3272954,654.42,653.86,2.337]
[1751275339731,1.3272954,654.41,653.87,1.493]
[1751275339931,1.3272954,654.4,653.87,1.493]
[1751275340232,1.3272954,654.39,653.87,1.493]
[1751275340428,1.3272954,654.38,653.87,1.493]
[1751275340628,1.3272954,654.37,653.87,1.493]
[1751275340832,1.3272954,654.36,653.87,1.493]
[1751275341029,1.3272954,654.35,653.87,1.493]
[1751275341232,1.3272954,654.34,653.87,1.493]
[1751275341432,1.3272954,654.33,653.87,1.493]
[1751275341632,1.3272954,654.32,653.87,1.493]
[1751275341829,1.3272954,654.31,653.87,1.493]
[1751275342032,1.3272954,654.3,653.87,1.493]
[1751275342229,1.3272954,654.29,653.87,1.493]
[1751275342529,1.3272954,654.28,653.87,1.493]
[1751275342828,1.3272954,654.27,653.87,1.493]
[1751275343028,1.3272954,654.26,653.87,1.493]
[1751275343232,1.3272954,654.25,653.87,1.493]
[1751275343428,1.3272954,654.24,653.87,1.493]
[1751275343735,1.3272954,654.23,653.87,1.493]
[1751275343933,1.3272954,654.22,653.87,1.493]
[1751275344229,1.3272954,654.21,653.87,1.493]
[1751275344432,1.3272954,654.2,653.87,1.493]
[1751275344631,1.3272954,654.19,653.87,1.493]
[1751275344830,1.3272954,654.18,653.87,1.493]
[1751275345034,1.3272954,654.17,653.87,1.493]
[1751275345234,1.3272954,654.16,653.87,1.493]
[1751275345436,0.26606522,654.52,653.87,1.493]
[1751275345437,1.3272954,654.15,653.87,1.493]
[1751275345632,1.3272954,654.14,653.87,1.493]
[1751275345832,1.5280173,654.48,653.87,1.493]
[1751275345833,1.3272954,654.13,653.87,1.493]
[1751275346033,1.3272954,654.12,653.87,1.493]
[1751275346235,1.3273984,654.11,653.87,1.493]
[1751275346435,1.5280173,654.46,653.87,1.493]
[1751275346640,1.3274184,654.45,653.87,1.493]
[1751275346838,1.3274184,654.44,653.87,1.493]
[1751275347041,1.3274184,654.43,653.87,1.493]
[1751275347237,1.3274184,654.42,653.87,1.493]
[1751275347445,1.3274184,654.41,653.87,1.493]
[1751275347736,1.3274184,654.4,653.87,1.493]
[1751275347942,1.3274184,654.39,653.87,1.493]
[1751275348240,1.3274184,654.38,653.87,1.493]
[1751275348437,1.3274184,654.37,653.87,1.493]
[1751275348637,1.3274184,654.36,653.87,1.493]
[1751275348841,1.3274184,654.35,653.87,1.493]
[1751275349041,1.3274184,654.34,653.87,1.493]
[1751275349337,1.3274184,654.33,653.87,1.493]
[1751275349537,1.3274184,654.32,653.87,1.493]
[1751275349743,1.3274184,654.31,653.87,1.493]
[1751275349937,1.3274184,654.3,653.87,1.493]
[1751275350139,1.3274184,654.29,653.87,1.493]
[1751275350338,1.3274184,654.28,653.87,1.493]
[1751275350544,1.3274184,654.27,653.87,1.493]
[1751275350741,1.3274184,654.26,653.86,2.337]
[1751275350941,1.3274184,654.25,653.86,2.337]
[1751275351146,1.3274184,654.24,653.86,2.337]
[1751275351444,1.3274184,654.23,653.86,2.337]
[1751275351644,1.3274184,654.22,653.86,2.337]
[1751275351844,1.3274184,654.21,653.86,2.337]
[1751275352044,1.3274184,654.2,653.86,2.337]
[1751275352242,1.3274184,654.19,653.86,2.337]
[1751275352445,1.3274184,654.18,653.86,2.337]
[1751275352741,1.3274184,654.17,653.86,2.337]
[1751275353045,1.3274184,654.16,653.86,2.337]
[1751275353245,1.3274184,654.15,653.86,2.337]
[1751275353441,1.3274184,654.14,653.85,1.889]
[1751275353742,1.3274184,654.13,653.85,1.889]
[1751275353941,1.3274184,654.12,653.85,1.889]
[1751275354142,1.3274184,654.11,653.85,1.889]
[1751275354341,1.3274184,654.1,653.85,1.889]
[1751275354542,1.3274184,654.09,653.86,1.726]
[1751275354742,1.3274184,654.08,653.86,1.726]
[1751275354944,1.3274184,654.07,653.86,1.726]
[1751275355142,1.3274184,654.06,653.86,1.726]
[1751275355344,1.5280173,654.37,653.86,1.726]
[1751275355545,1.3279855,654.36,653.86,1.726]
[1751275355845,1.3279855,654.35,653.86,1.726]
[1751275356041,1.3279855,654.34,653.86,1.726]
[1751275356245,1.3279855,654.33,653.86,1.726]
[1751275356447,1.3279855,654.32,653.86,1.726]
[1751275356741,1.3279855,654.31,653.86,1.726]
[1751275356941,1.3279855,654.3,653.86,1.726]
[1751275357240,1.3279855,654.29,653.86,1.726]
[1751275357446,1.3279855,654.28,653.86,1.726]
[1751275357744,1.5280173,654.39,653.86,1.726]
[1751275357745,1.3279855,654.27,653.86,1.726]
[1751275357941,1.3279855,654.26,653.86,1.726]
[1751275358146,1.3279855,654.25,653.86,1.726]
[1751275358346,1.3279855,654.24,653.86,1.726]
[1751275358546,1.3279855,654.23,653.86,1.726]
[1751275358743,1.3279855,654.22,653.86,1.726]
[1751275358946,1.3279855,654.21,653.86,1.726]
[1751275359142,1.3279855,654.2,653.86,1.726]
[1751275359349,1.3279855,654.19,653.86,1.726]
[1751275359647,1.3279855,654.18,653.86,1.726]
[1751275359847,1.3279855,654.17,653.86,1.726]
[1751275360145,1.3279855,654.16,653.86,1.726]
[1751275360349,1.3279855,654.15,653.86,1.726]
[1751275360547,1.5280173,654.38,653.86,1.726]
[1751275360548,1.3279855,654.14,653.86,1.726]
[1751275360747,1.3279855,654.13,653.86,1.726]
[1751275361048,1.3279855,654.12,653.86,1.726]
[1751275361247,1.3279855,654.11,653.86,1.726]
[1751275361444,1.3279855,654.1,653.86,1.726]
[1751275361643,1.3279855,654.09,653.86,1.726]
[1751275361948,1.3279855,654.08,653.86,1.726]
[1751275362247,1.3279855,654.07,653.86,1.726]
[1751275362544,1.3279855,654.06,653.86,1.726]
[1751275362742,1.3279855,654.05,653.86,1.726]
[1751275362946,1.5280173,654.35,653.86,1.726]
[1751275363143,1.32841463,654.34,653.86,1.726]
[1751275363442,1.32841463,654.33,653.86,1.726]
[1751275363650,1.32841463,654.32,653.86,1.726]
[1751275363846,1.32841463,654.31,653.86,1.726]
[1751275364046,1.32841463,654.3,653.86,1.726]
[1751275364247,1.32841463,654.29,653.86,1.726]
[1751275364445,1.32841463,654.28,653.86,1.726]
[1751275364751,1.32841463,654.27,653.86,1.726]
[1751275365050,1.32841463,654.26,653.86,1.726]
[1751275365351,1.32841463,654.25,653.86,1.726]
[1751275365650,1.32841463,654.24,653.86,1.726]
[1751275365851,1.32841463,654.23,653.86,1.726]
[1751275366151,1.32841463,654.22,653.86,1.726]
[1751275366350,1.32841463,654.21,653.86,1.726]
[1751275366550,1.32841463,654.2,653.86,1.726]
[1751275366750,1.32841463,654.19,653.85,1.889]
[1751275366950,1.32841463,654.18,653.85,1.889]
[1751275367252,1.32841463,654.17,653.85,1.889]
[1751275367547,1.32841463,654.16,653.85,1.889]
[1751275367750,1.32841463,654.15,653.85,1.889]
[1751275367951,1.32841463,654.14,653.85,1.889]
[1751275368148,1.32841463,654.13,653.85,1.889]
[1751275368348,1.32841463,654.12,653.85,1.889]
[1751275368551,1.32841463,654.11,653.85,1.889]
[1751275368851,1.32841463,654.1,653.85,1.889]
[1751275369051,1.32841463,654.09,653.85,1.889]
[1751275369251,1.32841463,654.08,653.85,1.889]
[1751275369447,1.32841463,654.07,653.85,1.889]
[1751275369651,1.32841463,654.06,653.85,1.889]
[1751275369848,1.32841463,654.05,653.85,1.889]
[1751275370048,1.32841463,654.04,653.85,1.889]
[1751275370249,1.32841463,654.03,653.85,1.889]
[1751275370448,1.32841463,654.02,653.85,1.889]
[1751275370652,1.32841463,654.01,653.85,1.889]
[1751275370949,1.5280173,654.27,653.85,1.889]
[1751275371148,1.32932386,654.26,653.85,1.889]
[1751275371349,1.32932386,654.25,653.85,1.889]
[1751275371649,1.32932386,654.24,653.85,1.889]
[1751275371853,1.32932386,654.23,653.85,1.889]
[1751275372060,1.32932386,654.22,653.85,1.889]
[1751275372257,1.32932386,654.21,653.85,1.889]
[1751275372458,1.32932386,654.2,653.85,1.889]
[1751275372658,1.32932386,654.19,653.85,1.889]
[1751275372858,1.32932386,654.18,653.85,1.889]
[1751275373058,1.32932386,654.17,653.85,1.889]
[1751275373255,1.32932386,654.16,653.85,1.889]
[1751275373455,1.32932386,654.15,653.85,1.889]
[1751275373658,1.32932386,654.14,653.85,1.889]
[1751275373956,1.32932386,654.13,653.85,1.889]
[1751275374158,1.32932386,654.12,653.85,1.889]
[1751275374460,1.32932386,654.11,653.85,1.889]
[1751275374661,1.32932386,654.1,653.85,1.889]
[1751275374856,1.32932386,654.09,653.85,1.889]
[1751275375059,1.32932386,654.08,653.85,1.889]
[1751275375260,1.32932386,654.07,653.85,1.889]
[1751275375457,1.32932386,654.06,653.85,1.889]
[1751275375657,1.32932386,654.05,653.85,1.889]
[1751275375861,1.32932386,654.04,653.85,1.889]
[1751275376059,1.32932386,654.03,653.85,1.889]
[1751275376263,1.32932386,654.02,653.85,1.889]
[1751275376460,1.32932386,654.01,653.85,1.889]
[1751275376660,1.32932386,654.0,653.85,1.889]
[1751275376862,1.32932386,653.99,653.85,1.889]
[1751275377062,1.5280173,654.3,653.85,1.889]
[1751275377366,1.32955527,654.29,653.85,1.889]
[1751275377659,1.32955527,654.28,653.85,1.889]
[1751275377863,1.32955527,654.27,653.85,1.889]
[1751275378060,1.32955527,654.26,653.85,1.889]
[1751275378262,1.32955527,654.25,653.85,1.889]
[1751275378460,1.32955527,654.24,653.85,1.889]
[1751275378661,1.32955527,654.23,653.85,1.889]
[1751275378862,1.32955527,654.22,653.85,1.889]
[1751275379064,1.32955527,654.21,653.85,1.889]
[1751275379267,1.32955527,654.2,653.85,1.889]
[1751275379466,1.32955527,654.19,653.85,1.889]
[1751275379763,1.32955527,654.18,653.85,1.889]
[1751275379967,1.32955527,654.17,653.85,1.889]
[1751275380164,1.32955527,654.16,653.85,1.889]
[1751275380367,1.32955527,654.15,653.85,1.889]
[1751275380664,1.32955527,654.14,653.85,1.889]
[1751275380862,1.32955527,654.13,653.85,1.889]
[1751275381062,1.32955527,654.12,653.85,1.889]
[1751275381364,1.32955527,654.11,653.85,1.889]
[1751275381568,1.32955527,654.1,653.62,1.14160755]
[1751275381769,1.32955527,654.09,653.62,1.14160755]
[1751275382064,1.32955527,654.08,653.63,1.14160755]
[1751275382365,1.32955527,654.07,653.66,1.14160755]
[1751275382569,1.32955527,654.06,653.66,1.14160755]
[1751275384070,1.32955527,653.99,653.67,1.14160755]
[1751275384371,1.32955527,653.98,653.67,1.14160755]
[1751275384568,1.32955527,653.97,653.67,1.14160755]
[1751275384871,1.32955527,653.96,653.68,1.208]
[1751275385169,1.5280173,654.24,653.68,1.208]
[1751275385368,2.85727089,654.23,653.68,1.208]
[1751275385572,1.32925359,654.22,653.68,1.208]
[1751275385772,1.32925359,654.21,653.68,2.34960755]
[1751275385969,1.32925359,654.2,653.68,2.34960755]
[1751275386269,1.32925359,654.19,653.68,2.34960755]
[1751275386472,1.32925359,654.18,653.68,2.34960755]
[1751275386672,1.5280173,654.23,653.68,2.34960755]
[1751275386673,1.32925359,654.17,653.68,2.34960755]
[1751275386973,1.32925359,654.16,653.68,2.34960755]
[1751275387172,1.32925359,654.15,653.68,2.34960755]
[1751275387475,1.32925359,654.14,653.68,2.34960755]
[1751275387771,1.32925359,654.13,653.68,2.34960755]
[1751275387975,1.32925359,654.12,653.68,2.34960755]
[1751275388172,1.32925359,654.11,653.68,2.34960755]
[1751275388472,1.32925359,654.1,653.68,2.34960755]